bitfinex/quotes_ETHUSD_20250814
["timestamp","ask_amount","ask_price","bid_price","bid_amount"]
[1755190645055,0.002,4560.6,4560.5,2.19274202]
[1755190645355,0.002,4560.6,4560.5,6.89984202]
[1755190645659,0.002,4560.6,4560.5,2.77554202]
[1755190646476,0.002,4560.6,4560.5,0.1096]
[1755190646885,0.002,4560.6,4560.5,2.30234202]
[1755190648084,0.002,4560.6,4559.9,0.4732]
[1755190648296,0.002,4560.6,4560.5,2.19274202]
[1755190648594,0.002,4560.6,4560.3,0.1096]
[1755190651398,0.002,4560.6,4558.5,2.19367736]
[1755190651399,4.23,4560.5,4559.3,0.4732]
[1755190651549,4.23,4560.5,4559.5,0.1096]
[1755190651550,0.1096,4560.2,4559.5,0.1096]
[1755190651752,4.23,4560.1,4559.5,2.30281832]
[1755190652260,4.23,4560.1,4559.5,0.1096]
[1755190652852,2.19303126,4559.9,4559.5,0.1096]
[1755190653053,2.19303126,4559.9,4559.0,0.4732]
[1755190653054,2.19303126,4559.9,4559.1,2.1934049]
[1755190653252,4.23,4559.8,4558.5,0.4732]
[1755190653518,4.23,4559.8,4558.5,0.93245]
[1755190653694,0.55,4559.9,4558.9,2.19347226]
[1755190653887,2.30274337,4559.7,4559.0,0.1096]
[1755190654077,4.23,4559.6,4559.0,0.1096]
[1755190654647,0.1096,4559.7,4559.0,0.1096]
[1755190654648,4.23,4559.7,4559.1,0.49513415]
[1755190654859,4.23,4559.7,4559.5,0.1096]
[1755190656099,4.23,4559.7,4559.6,2.19317483]
[1755190656299,12.23473514,4560.6,4559.6,2.19317483]
[1755190656300,0.002,4560.6,4560.0,2.19298245]
[1755190656459,0.002,4560.6,4560.3,0.1096]
[1755190656983,0.002,4560.6,4560.3,2.30242725]
[1755190657185,0.002,4560.6,4560.3,0.1096]
[1755190658006,0.1096,4560.4,4559.8,0.1096]
[1755190658581,0.55,4560.3,4558.4,0.4732]
[1755190658779,0.1096,4560.0,4559.3,0.1096]
[1755190658983,3.602,4559.9,4559.3,0.1096]
[1755190659195,3.602,4559.9,4559.3,2.30289561]
[1755190659396,3.602,4559.9,4559.3,0.1096]
[1755190659580,5.79506699,4559.9,4559.3,0.1096]
[1755190659771,5.79506699,4559.9,4558.0,5.79594025]
[1755190659772,2.19313925,4559.7,4558.4,2.66693494]
[1755190659971,2.30278181,4559.6,4559.0,0.1096]
[1755190660211,0.1096,4559.6,4559.0,0.1096]
[1755190660414,2.30281312,4559.6,4559.0,0.1096]
[1755190660571,2.30281312,4559.6,4558.4,0.4732]
[1755190660572,0.1096,4559.1,4558.4,0.1096]
[1755190660975,3.602,4559.0,4558.4,0.1096]
[1755190661510,3.602,4558.9,4558.5,2.19365778]
[1755190661714,3.602,4558.9,4558.4,2.30334482]
[1755190661900,3.602,4558.9,4558.4,0.1096]
[1755190662302,2.19362608,4558.7,4557.9,0.4732]
[1755190662626,3.602,4558.9,4558.1,0.1096]
[1755190662627,0.1096,4558.8,4558.1,0.1096]
[1755190662917,0.55,4558.5,4557.0,0.001]
[1755190663116,0.1096,4558.1,4557.4,0.1096]
[1755190663324,3.601,4558.0,4557.4,0.1096]
[1755190663476,2.19412012,4557.7,4557.4,0.1096]
[1755190663681,5.79497849,4558.0,4557.0,0.001]
[1755190663682,2.1940792,4557.8,4557.0,0.001]
[1755190664002,5.79498689,4558.0,4557.1,2.19436813]
[1755190664003,0.1096,4557.7,4557.1,2.19436813]
[1755190664383,0.1096,4557.7,4557.1,0.54879779]
[1755190664581,0.1096,4557.7,4557.0,2.77821717]
[1755190664582,5.744378,4557.1,4557.0,0.001]
[1755190664825,10.105378,4557.1,4557.0,0.001]
[1755190665628,6.243678,4557.1,4557.0,0.001]
[1755190665836,6.023,4558.7,4558.3,0.001]
[1755190665994,6.24305219,4558.4,4558.3,0.001]
[1755190666180,6.70898898,4558.4,4558.3,0.001]
[1755190666712,10.10475219,4558.4,4558.3,0.001]
[1755190667079,10.30885869,4558.4,4558.3,0.001]
[1755190667279,10.10475219,4558.4,4558.3,0.001]
[1755190667511,10.30870467,4558.4,4558.3,0.001]
[1755190668116,10.10475219,4558.4,4558.3,0.001]
[1755190668276,9.84305219,4558.4,4558.3,0.001]
[1755190668934,10.10475219,4558.4,4558.3,0.001]
[1755190669078,10.30854646,4558.4,4558.3,0.001]
[1755190669281,10.10475219,4558.4,4558.3,0.001]
[1755190669724,21.37475219,4558.4,4558.3,0.001]
[1755190670227,20.61275219,4558.4,4558.3,0.001]
[1755190671831,4.23,4558.4,4558.3,0.001]
[1755190672134,10.02275219,4558.4,4558.3,0.001]
[1755190672352,7.829,4558.4,4558.3,0.4359]
[1755190672551,7.828,4558.4,4558.3,0.915]
[1755190672701,10.828,4558.4,4558.3,0.001]
[1755190672906,13.02175219,4558.4,4558.3,0.001]
[1755190673103,14.33635219,4558.4,4558.3,0.001]
[1755190673553,14.07465219,4558.4,4558.3,0.001]
[1755190673805,9.97375219,4558.4,4558.3,0.001]
[1755190674016,13.57175219,4558.4,4558.3,0.001]
[1755190675307,9.97375219,4558.4,4558.3,0.001]
[1755190675650,13.57175219,4558.4,4558.3,0.001]
[1755190675846,13.68135219,4558.4,4558.3,0.001]
[1755190676742,0.2617,4559.8,4558.3,0.001]
[1755190676743,0.1096,4558.7,4558.3,0.915]
[1755190676938,3.597,4558.6,4558.4,0.914]
[1755190677304,3.597,4558.6,4558.5,0.914]
[1755190677560,3.597,4558.6,4558.3,0.001]
[1755190677561,2.19375219,4558.4,4558.3,0.001]
[1755190677764,0.55,4558.5,4558.3,0.001]
[1755190678124,0.1096,4558.4,4558.3,0.001]
[1755190678471,3.597,4558.5,4558.3,0.915]
[1755190678844,3.597,4558.5,4558.4,0.4349]
[1755190679043,3.597,4558.5,4558.4,0.914]
[1755190679833,3.597,4558.5,4558.4,3.10775219]
[1755190680035,3.596,4558.6,4558.4,1.55386398]
[1755190680237,3.596,4558.6,4558.5,0.914]
[1755190680932,3.596,4558.6,4558.4,0.63986398]
[1755190680933,5.74370406,4558.5,4558.3,0.001]
[1755190681133,2.74389657,4558.1,4556.1,0.4791]
[1755190681376,2.74423355,4557.4,4555.8,0.4349]
[1755190681539,9.33923355,4557.4,4555.8,0.4349]
[1755190681738,10.08903355,4557.4,4555.8,0.4349]
[1755190681939,0.55,4556.3,4555.8,0.1879]
[1755190682138,3.595,4556.2,4555.9,0.4791]
[1755190682366,3.595,4556.2,4555.6,0.001]
[1755190682566,3.595,4556.2,4556.0,0.4791]
[1755190682742,3.595,4556.2,4555.6,0.001]
[1755190683380,3.595,4556.2,4555.7,2.19501319]
[1755190683561,3.595,4556.2,4555.8,0.4791]
[1755190683770,3.595,4556.1,4555.9,0.4791]
[1755190683967,3.595,4556.1,4555.6,0.001]
[1755190684436,3.595,4556.1,4555.6,0.4359]
[1755190684641,0.55,4556.6,4555.7,0.914]
[1755190684906,0.55,4556.4,4555.7,0.914]
[1755190685107,2.74471598,4556.4,4555.7,0.914]
[1755190685797,0.55,4556.4,4555.7,0.914]
[1755190686104,0.55,4556.5,4555.8,2.19499947]
[1755190686303,0.55,4556.5,4555.6,0.001]
[1755190686304,3.595,4556.3,4555.9,3.10894194]
[1755190686506,3.595,4556.2,4555.8,2.19499645]
[1755190686807,3.595,4556.1,4556.0,0.914]
[1755190686958,3.595,4556.1,4555.6,0.001]
[1755190687164,3.595,4556.1,4555.7,0.4349]
[1755190687389,3.595,4556.0,4555.9,2.19495599]
[1755190687592,3.595,4556.0,4555.9,3.10895599]
[1755190688350,2.65470912,4557.9,4555.9,0.914]
[1755190688639,0.55,4556.9,4556.3,2.1947467]
[1755190688796,3.594,4556.8,4556.3,0.4349]
[1755190689000,3.594,4556.8,4556.0,0.4349]
[1755190689195,0.55,4556.7,4556.0,0.4349]
[1755190689809,0.55,4556.7,4556.2,2.1948049]
[1755190690014,0.55,4556.7,4556.3,0.4349]
[1755190690625,5.42638224,4558.6,4556.4,0.914]
[1755190690935,3.0,4558.1,4556.5,0.4349]
[1755190691096,0.1096,4557.4,4556.6,0.1096]
[1755190691307,3.594,4557.3,4556.5,3.10866594]
[1755190691507,0.1096,4557.1,4556.5,3.10866594]
[1755190691843,0.1096,4557.1,4556.5,0.914]
[1755190692058,0.1096,4557.1,4556.8,2.19451866]
[1755190692059,3.594,4557.0,4556.8,2.19451866]
[1755190692346,3.594,4557.0,4556.9,0.914]
[1755190692545,0.55,4556.9,4556.5,2.1946388]
[1755190692704,0.1096,4556.6,4556.5,2.1946388]
[1755190692904,0.1096,4556.6,4556.4,2.19470418]
[1755190693143,3.593,4556.5,4556.4,3.10870418]
[1755190693541,3.593,4556.5,4555.9,0.1096]
[1755190693542,7.823,4556.5,4555.9,0.5445]
[1755190693747,7.823,4556.5,4556.0,2.1948953]
[1755190693943,7.823,4556.5,4556.1,0.914]
[1755190694240,7.823,4556.5,4556.2,2.19481146]
[1755190694652,7.823,4556.5,4556.3,0.4349]
[1755190694852,7.823,4556.5,4556.2,0.4791]
[1755190695008,7.823,4556.5,4556.0,2.19490781]
[1755190695203,7.823,4556.5,4556.1,2.19483813]
[1755190695610,7.823,4556.5,4556.2,2.1948094]
[1755190695811,7.823,4556.5,4556.3,3.10874326]
[1755190696046,7.823,4556.5,4556.3,2.67384326]
[1755190696212,7.823,4556.5,4556.4,0.4349]
[1755190696411,4.23,4556.5,4556.4,0.4349]
[1755190696763,7.823,4556.5,4556.4,0.914]
[1755190697130,7.823,4556.5,4556.4,0.4349]
[1755190697330,7.823,4556.5,4556.0,0.914]
[1755190697512,7.823,4556.5,4556.2,2.19480583]
[1755190697714,7.823,4556.5,4556.2,2.62970583]
[1755190697941,7.823,4556.5,4556.2,3.10880583]
[1755190698266,7.823,4556.5,4556.2,0.4791]
[1755190698440,7.823,4556.5,4555.9,0.1096]
[1755190698618,7.823,4556.5,4556.0,2.19489453]
[1755190699024,7.823,4556.5,4555.9,0.1096]
[1755190699461,0.55,4556.4,4555.9,0.1096]
[1755190699758,0.55,4556.2,4555.8,0.001]
[1755190699914,3.591,4556.1,4555.8,0.001]
[1755190700428,5.85455599,4555.9,4555.8,0.001]
[1755190701153,3.55,4555.8,4554.9,2.16002494]
[1755190701457,2.30455599,4555.9,4555.1,2.19532218]
[1755190701458,0.55,4555.6,4555.1,2.19532218]
[1755190701653,3.591,4555.5,4555.2,0.4548]
[1755190701874,3.591,4555.5,4555.3,0.4548]
[1755190702015,3.591,4555.5,4555.3,3.13094501]
[1755190702219,3.7006,4555.5,4555.4,0.4548]
[1755190702507,3.591,4555.6,4555.4,3.1308969]
[1755190702636,0.1096,4555.7,4555.5,0.9357]
[1755190702831,0.55,4556.3,4555.5,0.9357]
[1755190702832,0.1096,4556.0,4555.6,0.9357]
[1755190703156,0.1096,4556.0,4555.6,3.13078623]
[1755190703360,0.1096,4556.0,4555.9,2.19495599]
[1755190703658,0.1096,4556.0,4555.9,0.9357]
[1755190703870,0.1096,4556.0,4555.9,3.13065599]
[1755190704076,3.591,4556.1,4555.9,0.9357]
[1755190704373,3.591,4556.1,4555.9,2.19494833]
[1755190704746,0.1096,4556.4,4555.9,2.19494833]
[1755190704950,3.59,4556.3,4555.9,2.64974833]
[1755190705162,3.59,4556.3,4555.8,2.30459854]
[1755190705372,3.59,4556.3,4555.0,2.1953448]
[1755190705373,0.55,4556.2,4555.4,0.4548]
[1755190705538,0.1096,4556.0,4555.4,0.1096]
[1755190705743,3.59,4556.3,4554.8,0.001]
[1755190705744,8.37,4555.9,4554.8,0.001]
[1755190705979,0.1096,4555.6,4555.0,0.1096]
[1755190706139,0.1096,4555.6,4555.0,2.30497821]
[1755190706342,4.23,4555.5,4555.0,2.30497821]
[1755190706777,3.59,4555.4,4555.0,0.1096]
[1755190706949,7.82,4555.4,4554.8,0.001]
[1755190707153,7.82,4555.4,4554.8,2.3060803]
[1755190707510,7.82,4555.4,4554.8,0.1106]
[1755190707840,0.55,4555.3,4554.8,0.1106]
[1755190708098,0.55,4555.3,4554.8,0.001]
[1755190708099,0.55,4555.1,4554.8,0.001]
[1755190708249,5.74543788,4554.9,4554.8,0.001]
[1755190708450,7.78,4554.9,4554.8,0.001]
[1755190710253,9.97543788,4554.9,4554.8,0.001]
[1755190710989,10.42813788,4554.9,4554.8,0.001]
[1755190712698,10.90173788,4554.9,4554.8,0.001]
[1755190713049,14.49073788,4554.9,4554.8,0.001]
[1755190716281,14.01713788,4554.9,4554.8,0.001]
[1755190716477,13.56443788,4554.9,4554.8,0.001]
[1755190717278,14.01713788,4554.9,4554.8,0.001]
[1755190717696,5.74558248,4554.6,4554.5,0.001]
[1755190717916,9.44318248,4554.6,4554.5,0.001]
[1755190718592,9.89588248,4554.6,4554.5,0.001]
[1755190718794,3.55,4554.4,4554.3,1e-08]
[1755190718994,21.5289789,4554.4,4554.3,1e-08]
[1755190720019,21.73302933,4554.4,4554.3,1e-08]
[1755190720218,21.5289789,4554.4,4554.3,1e-08]
[1755190720917,10.2599789,4554.4,4554.3,1e-08]
[1755190721641,0.55,4554.2,4553.6,1e-08]
[1755190721844,3.6596,4553.7,4553.6,1e-08]
[1755190722028,10.36891642,4553.7,4553.6,1e-08]
[1755190722562,11.02835942,4553.7,4553.6,1e-08]
[1755190722734,11.23216667,4553.7,4553.6,1e-08]
[1755190722933,0.55,4553.6,4551.4,0.9357]
[1755190723107,0.55,4551.5,4551.4,0.9357]
[1755190723307,0.55,4551.5,4550.5,2.30713169]
[1755190723308,0.55,4551.0,4550.9,0.4548]
[1755190723509,6.33331927,4551.0,4550.9,0.4548]
[1755190723719,4.2456,4551.0,4550.9,0.9357]
[1755190723924,6.44291927,4551.0,4550.9,0.9357]
[1755190724226,3.0,4552.2,4550.9,0.9357]
[1755190724540,0.55,4551.0,4550.9,0.9357]
[1755190724738,4.136,4551.0,4550.9,0.9357]
[1755190725895,0.55,4551.0,4550.9,0.9357]
[1755190726296,0.1096,4551.0,4550.9,0.9357]
[1755190726616,3.586,4551.0,4550.9,0.9357]
[1755190728869,0.1096,4551.1,4550.9,0.9357]
[1755190729052,3.586,4551.0,4550.4,0.1096]
[1755190729641,3.586,4551.0,4550.4,2.30720209]
[1755190729953,0.55,4550.6,4550.5,0.9357]
[1755190730149,0.55,4550.6,4548.5,5.268]
[1755190730150,0.55,4550.5,4550.1,0.9357]
[1755190730352,0.55,4550.5,4550.4,0.001]
[1755190730650,0.55,4550.5,4550.4,0.9367]
[1755190731218,0.55,4550.5,4550.4,0.001]
[1755190731632,0.55,4550.5,4550.4,0.9261]
[1755190732636,5.7475607,4550.5,4550.4,0.001]
[1755190733575,6.6716607,4550.5,4550.4,0.001]
[1755190734073,6.87494891,4550.5,4550.4,0.001]
[1755190734378,7.44788821,4550.5,4550.4,0.001]
[1755190734562,7.2446,4550.5,4550.4,0.001]
[1755190734763,3.6946,4550.5,4550.4,0.9261]
[1755190734987,0.1096,4550.5,4550.4,3.123709]
[1755190735182,5.27,4552.5,4550.4,0.9261]
[1755190735183,3.585,4550.6,4550.4,0.9261]
[1755190735384,4.135,4550.5,4550.4,0.9261]
[1755190736191,0.36869999,4551.9,4550.4,0.9261]
[1755190736413,5.78093308,4551.8,4550.5,0.9470756]
[1755190736595,5.78093308,4551.8,4550.4,0.001]
[1755190736596,0.20345961,4551.7,4550.6,0.9251]
[1755190736900,3.584,4551.6,4550.7,0.94707464]
[1755190737202,0.36869999,4551.9,4550.7,0.94707464]
[1755190737203,0.36869999,4551.9,4550.8,0.94707415]
[1755190737365,0.36869999,4551.9,4551.8,2.19693308]
[1755190737719,3.585,4552.1,4551.3,0.4461]
[1755190737924,2.19683655,4552.0,4551.3,0.4461]
[1755190738076,3.585,4552.1,4551.4,0.479]
[1755190738281,3.584,4552.0,4551.4,0.479]
[1755190738486,4.134,4551.9,4551.4,0.479]
[1755190738819,3.584,4551.8,4551.5,0.9251]
[1755190739178,0.55,4552.1,4551.6,0.4461]
[1755190739384,0.55,4551.9,4551.7,0.9251]
[1755190739619,0.55,4551.9,4551.2,2.19721487]
[1755190739620,3.0,4552.9,4551.8,0.9251]
[1755190739775,5.271,4554.2,4551.9,0.94706884]
[1755190739980,5.271,4554.2,4552.0,0.9251]
[1755190739981,3.78770075,4554.1,4552.0,0.9251]
[1755190740202,2.19655947,4552.6,4552.1,0.9251]
[1755190740425,0.55,4552.4,4552.1,0.9251]
[1755190740721,3.583,4552.5,4552.2,0.9251]
[1755190740924,0.55,4552.4,4551.7,0.4461]
[1755190741128,0.55,4552.4,4551.7,2.64307774]
[1755190741284,3.583,4552.3,4552.2,2.19674003]
[1755190741484,3.583,4552.7,4552.2,0.4461]
[1755190741687,3.583,4552.8,4552.3,0.9251]
[1755190741886,0.55,4552.6,4552.3,0.9251]
[1755190742180,3.0,4554.1,4552.4,0.9251]
[1755190742397,2.19628094,4553.2,4552.4,3.12173461]
[1755190742609,2.19611288,4553.5,4552.4,3.12173461]
[1755190742610,0.55,4553.0,4552.4,0.9251]
[1755190742820,0.55,4552.8,4552.4,0.9251]
[1755190743331,3.583,4552.9,4551.1,27.53015776]
[1755190743496,3.583,4552.9,4550.4,0.001]
[1755190743497,3.583,4552.9,4551.9,2.19688481]
[1755190743931,3.583,4552.9,4552.3,2.19668906]
[1755190744612,0.55,4552.8,4552.0,0.4461]
[1755190744932,2.1962196,4553.3,4551.9,2.19687597]
[1755190744933,0.275573,4554.6,4554.5,2.19563069]
[1755190745236,0.002,4555.9,4555.8,2.19500417]
[1755190745404,0.002,4555.9,4555.8,33.12976193]
[1755190745598,0.002,4555.9,4555.8,38.85416239]
[1755190745934,0.002,4557.7,4556.2,2.19481146]
[1755190746147,0.002,4557.7,4556.4,2.19470048]
[1755190746295,0.002,4557.7,4556.6,27.53015776]
[1755190746493,0.002,4557.7,4556.6,31.7578402]
[1755190746795,0.002,4557.7,4556.6,4.22768244]
[1755190746995,0.002,4557.7,4556.6,2.19461879]
[1755190748636,0.002,4557.7,4556.6,5.77661879]
[1755190748812,0.002,4557.7,4556.6,6.18121879]
[1755190749496,0.002,4557.7,4556.6,6.17921879]
[1755190750134,0.002,4557.7,4556.6,6.26703379]
[1755190750306,0.002,4557.7,4556.6,5.86243379]
[1755190750852,0.002,4557.7,4556.6,5.77461879]
[1755190751000,0.002,4557.7,4556.6,5.86243379]
[1755190751398,0.002,4557.7,4557.1,2.194378]
[1755190751613,0.002,4557.7,4557.1,26.90973621]
[1755190751918,0.002,4557.7,4557.1,30.06219243]
[1755190752251,0.002,4557.7,4557.1,31.38679243]
[1755190752877,0.55,4557.1,4554.5,0.11050775]
[1755190753161,0.55,4556.1,4551.6,0.479]
[1755190753306,0.55,4553.4,4552.2,0.087913]
[1755190753506,2.19510053,4555.6,4551.1,0.4471]
[1755190753507,1.57087018,4553.3,4551.1,0.4471]
[1755190753709,0.55,4553.2,4551.2,0.62191]
[1755190753918,0.55,4553.2,4551.1,0.4471]
[1755190753919,0.93420227,4553.2,4551.3,0.479]
[1755190754153,0.55,4553.2,4551.4,3.895]
[1755190754317,0.55,4553.0,4551.5,2.19707788]
[1755190754520,2.19622465,4553.3,4552.3,2.19668591]
[1755190754721,0.55,4553.6,4552.2,4.374]
[1755190754953,2.74607103,4553.6,4552.3,3.901]
[1755190755103,2.19645152,4552.8,4552.3,3.901]
[1755190755305,0.55,4553.6,4552.3,3.901]
[1755190755545,2.30595305,4553.1,4552.4,0.1096]
[1755190755771,0.1096,4553.1,4552.4,0.55856]
[1755190755907,0.1096,4553.1,4552.5,2.19659527]
[1755190756106,0.1096,4553.1,4552.6,0.479]
[1755190756339,0.4654,4554.7,4552.7,3.896]
[1755190756541,2.19548763,4554.8,4553.0,0.1096]
[1755190756838,0.1096,4554.3,4553.8,2.19592277]
[1755190757037,0.1096,4554.3,4553.9,6.09091711]
[1755190757243,0.1096,4554.8,4554.0,0.5886]
[1755190757450,0.1096,4554.8,4554.0,0.1096]
[1755190757654,0.1096,4554.8,4554.1,3.892]
[1755190758214,0.1096,4554.8,4554.2,3.888]
[1755190758439,0.1096,4554.5,4554.2,3.888]
[1755190758611,2.41654599,4557.1,4554.2,3.888]
[1755190758612,2.19521505,4555.4,4554.3,4.76676]
[1755190758812,3.0,4556.2,4554.0,3.897]
[1755190759043,2.19538421,4555.1,4554.1,2.19577887]
[1755190759243,2.19539748,4555.0,4554.0,3.897]
[1755190759471,2.19539748,4555.0,4554.0,2.19585754]
[1755190759640,2.19533136,4555.2,4554.1,3.896]
[1755190759847,2.19533136,4555.2,4554.3,2.19571828]
[1755190760181,2.19529912,4555.2,4554.3,2.19571828]
[1755190760326,0.55,4555.3,4554.4,2.19566275]
[1755190760532,2.19534279,4555.1,4554.5,3.894]
[1755190760933,2.19534279,4555.1,4554.2,2.19573257]
[1755190761133,2.19534279,4555.1,4554.3,6.08372279]
[1755190761371,2.74528373,4555.3,4554.4,2.19567199]
[1755190761981,2.19510053,4555.6,4554.5,3.888]
[1755190762144,3.55,4555.7,4554.5,3.888]
[1755190762331,0.55,4555.7,4554.5,3.888]
[1755190762534,0.55,4555.7,4554.7,2.19548888]
[1755190762734,0.55,4555.7,4554.5,3.888]
[1755190763048,2.19519188,4555.5,4554.6,6.07858145]
[1755190763430,0.55,4555.7,4554.7,2.19551698]
[1755190763636,6.42410172,4555.6,4554.7,2.19553428]
[1755190763874,2.19516,4555.5,4554.7,2.19552132]
[1755190764038,4.229,4555.6,4554.7,2.19549915]
[1755190764231,4.229,4555.6,4554.8,2.19547617]
[1755190764431,4.229,4555.6,4554.9,2.1953974]
[1755190764671,4.229,4555.6,4554.9,2.19543788]
[1755190764981,4.229,4555.6,4554.7,2.67471244]
[1755190765129,4.229,4555.6,4555.0,2.19537905]
[1755190765334,4.229,4555.6,4554.7,2.6747242]
[1755190765571,4.229,4555.6,4555.0,2.19536891]
[1755190765832,4.229,4555.6,4555.0,3.87]
[1755190765833,0.8857,4555.5,4555.0,3.87]
[1755190766372,0.8857,4555.4,4555.0,3.87]
[1755190766598,0.4344,4555.4,4555.0,3.87]
[1755190766768,0.4344,4555.4,4554.7,2.19552347]
[1755190767073,0.4344,4555.4,4555.1,3.864]
[1755190767284,4.229,4555.6,4555.1,3.864]
[1755190767786,4.22417689,4555.6,4555.1,3.864]
[1755190768002,4.22417689,4555.6,4555.1,4.3432]
[1755190768189,4.22417689,4555.6,4555.3,2.19523767]
[1755190768391,4.22417689,4555.6,4555.1,6.5385039]
[1755190768597,4.22417689,4555.6,4555.3,0.1096]
[1755190770395,0.55,4553.5,4550.8,0.001]
[1755190770597,0.55,4553.0,4550.9,0.001]
[1755190770788,2.19704768,4551.6,4550.9,0.001]
[1755190770989,5.74712615,4551.4,4550.9,0.001]
[1755190771313,0.55,4551.3,4551.1,1e-08]
[1755190771491,5.74722271,4551.2,4551.1,1e-08]
[1755190771688,6.81753637,4551.2,4551.1,1e-08]
[1755190771889,6.81753637,4551.2,4549.9,0.001]
[1755190771891,2.74780219,4550.0,4549.9,0.001]
[1755190772134,10.60150219,4550.0,4549.9,0.001]
[1755190772417,10.60150219,4550.0,4549.9,1e-08]
[1755190772418,10.80497497,4550.0,4549.9,1e-08]
[1755190774134,0.55,4549.8,4546.6,3.987]
[1755190774430,0.55,4549.8,4546.4,0.4792]
[1755190774431,0.55,4549.0,4546.7,0.71204757]
[1755190774631,2.19911267,4547.3,4546.4,0.4792]
[1755190774830,0.55,4547.4,4546.4,0.4792]
[1755190775028,2.74901918,4547.5,4546.4,2.67871384]
[1755190775216,0.55,4547.5,4546.5,2.19948402]
[1755190775416,2.74903116,4547.5,4546.4,0.4792]
[1755190775625,2.74903116,4547.5,4546.4,2.67872975]
[1755190776192,3.4344,4548.1,4546.4,2.67872975]
[1755190776193,0.4344,4548.1,4546.4,0.4792]
[1755190776392,0.660142,4548.4,4546.5,0.4548]
[1755190776618,0.55,4548.1,4546.9,2.19926222]
[1755190776817,0.55,4547.9,4546.7,2.19939736]
[1755190777020,2.74882519,4547.9,4547.0,0.4792]
[1755190777396,5.74872034,4548.1,4547.0,0.4792]
[1755190777700,3.55,4547.9,4546.7,2.19939538]
[1755190777922,0.55,4547.6,4546.7,2.19939538]
[1755190778706,0.55,4547.8,4546.6,0.4548]
[1755190778902,0.4344,4548.9,4546.8,0.4792]
[1755190779140,3.964,4548.8,4547.2,2.19911477]
[1755190779348,0.20133723,4548.7,4547.3,0.4792]
[1755190779548,4.51,4548.6,4547.4,2.19902013]
[1755190779849,4.51,4548.6,4547.3,0.4792]
[1755190780047,2.74857768,4548.4,4547.0,2.19920639]
[1755190780246,0.55,4548.3,4546.9,0.4792]
[1755190780413,0.55,4548.3,4547.1,2.19915839]
[1755190780608,0.1096,4547.6,4546.9,0.5888]
[1755190780947,0.1096,4547.6,4547.1,2.19917217]
[1755190781147,0.1096,4547.6,4547.2,2.19915237]
[1755190781465,0.1096,4547.6,4547.3,0.4792]
[1755190781946,0.1096,4547.6,4547.4,0.4792]
[1755190782448,0.1096,4547.6,4547.5,2.19901044]
[1755190782650,0.83506085,4549.8,4547.5,0.934]
[1755190782853,0.1096,4547.9,4547.5,0.934]
[1755190783037,0.1096,4547.9,4547.6,0.4792]
[1755190783412,0.1096,4547.9,4547.2,0.1096]
[1755190783612,0.55,4548.2,4547.0,2.19924259]
[1755190783856,0.1096,4547.6,4547.0,2.19924259]
[1755190784027,0.1096,4547.6,4546.9,2.78809553]
[1755190784226,0.1096,4547.6,4547.0,2.19922155]
[1755190784616,0.4344,4548.1,4546.9,0.4792]
[1755190784813,0.4344,4548.1,4546.6,2.20043558]
[1755190784814,0.1096,4547.2,4546.6,2.20043558]
[1755190785011,0.1096,4547.2,4546.6,0.001]
[1755190785462,0.1096,4547.2,4546.6,2.20043096]
[1755190785770,0.1096,4547.2,4546.7,2.19938851]
[1755190786140,0.1096,4547.2,4546.7,0.4792]
[1755190786330,0.1096,4547.2,4546.7,2.67859266]
[1755190786763,0.1096,4547.2,4546.8,0.4792]
[1755190786963,0.1096,4547.2,4546.6,0.001]
[1755190787467,0.1096,4547.2,4546.6,2.20043526]
[1755190787765,0.1096,4547.2,4546.7,2.19938367]
[1755190787963,0.1096,4547.2,4546.6,2.20043713]
[1755190788341,0.1096,4547.2,4546.7,2.19938114]
[1755190788540,0.1096,4547.2,4546.6,2.20043953]
[1755190788726,0.1096,4547.2,4546.6,0.001]
[1755190788929,0.1096,4547.2,4546.6,2.20040496]
[1755190789362,0.1096,4547.2,4546.6,0.001]
[1755190789860,0.1096,4547.2,4546.6,2.20044375]
[1755190790068,0.1096,4547.2,4546.6,0.001]
[1755190790272,0.55,4546.7,4546.6,0.001]
[1755190790474,0.20114407,4547.6,4546.6,0.001]
[1755190790475,0.1096,4547.1,4546.9,2.1992557]
[1755190790676,0.1096,4547.1,4546.7,2.19939736]
[1755190790862,0.1096,4547.1,4547.0,0.4792]
[1755190791067,0.1096,4547.1,4546.6,0.001]
[1755190791388,0.1096,4547.1,4546.7,0.4792]
[1755190791545,0.1096,4547.1,4546.7,2.6785578]
[1755190791873,0.1096,4547.5,4546.8,1.0675]
[1755190792047,0.1096,4547.5,4546.8,0.6257]
[1755190792373,0.1096,4547.5,4547.1,2.1991968]
[1755190792574,0.1096,4547.5,4546.9,0.4418]
[1755190792882,0.1096,4547.5,4547.4,2.1990588]
[1755190793094,0.1096,4547.5,4547.4,0.9579]
[1755190793313,0.1096,4548.5,4547.4,1.40519345]
[1755190793459,0.20118055,4548.4,4548.0,2.19873888]
[1755190793800,0.1096,4548.5,4547.4,0.86710287]
[1755190793801,0.1096,4548.5,4548.1,0.5161]
[1755190794034,0.1096,4548.5,4548.3,2.1986235]
[1755190794316,0.20118055,4548.8,4548.3,0.5161]
[1755190794456,0.31078055,4548.7,4548.3,0.5161]